lending/lending_fUSD_20240111
["ID","MTS","AMOUNT","RATE_DAILY","PERIOD"]
[311233140,1704988285155,-631.47,0.00045753,30]
[311233141,1704988285164,-372.65423936,0.00045753,30]
[311233142,1704988285174,-500.0,0.00045753,30]
[311233143,1704988285184,-2070.2,0.00045753,30]
[311233144,1704988285194,-366.04656196,0.00045753,30]
[311233145,1704988285204,-500.0,0.00045753,30]
[311233146,1704988285213,-4105.03,0.00045753,30]
[311233147,1704988285222,-500.0,0.00045753,30]
[311233148,1704988285232,-500.0,0.00045753,30]
[311233149,1704988285241,-500.0,0.00045753,30]
[311233150,1704988285250,-591.97,0.00045753,30]
[311233151,1704988285259,-500.0,0.00045753,30]
[311233152,1704988285269,-500.0,0.00045753,30]
[311233153,1704988285278,-500.0,0.00045753,30]
[311233154,1704988285288,-1000.0,0.00045753,2]
[311233155,1704988285299,-500.0,0.00045753,30]
[311233156,1704988285308,-500.0,0.00045753,30]
[311233157,1704988285318,-873.42,0.00045753,30]
[311233158,1704988285327,-500.0,0.00045753,30]
[311233159,1704988285343,-403.62938906,0.00045753,30]
[311233160,1704988285353,-500.0,0.00045753,30]
[311233161,1704988285363,-5007.29,0.00045753,5]
[311233162,1704988285373,-520.28,0.00045753,30]
[311233163,1704988285382,-674.68,0.00045753,30]
[311233164,1704988285392,-500.0,0.00045753,30]
[311233165,1704988285402,-500.0,0.00045753,30]
[311233166,1704988285412,-814.89,0.00045753,30]
[311233167,1704988285422,-610.25,0.00045753,30]
[311233168,1704988285434,-500.0,0.00045753,30]
[311233169,1704988285444,-601.29,0.00045753,30]
[311233170,1704988285454,-500.0,0.00045753,30]
[311233171,1704988285468,-500.0,0.00045753,30]
[311233172,1704988285478,-488.52575093,0.00045753,10]
[311233173,1704988285488,-503.27,0.00045753,30]
[311233174,1704988285499,-500.0,0.00045753,30]
[311233175,1704988285510,-500.0,0.00045753,30]
[311233176,1704988285519,-1423.0,0.00045753,30]
[311233177,1704988285529,-500.0,0.00045753,30]
[311233178,1704988285539,-500.0,0.00045753,30]
[311233179,1704988285548,-4201.26,0.00045753,5]
[311233180,1704988285558,-588.0,0.00045753,30]
[311233181,1704988285567,-500.0,0.00045753,30]
[311233182,1704988285577,-4614.86,0.00045753,30]
[311233183,1704988285591,-500.0,0.00045753,30]
[311233184,1704988285601,-500.0,0.00045753,30]
[311233185,1704988285612,-1694.89994385,0.000458,2]
[311233186,1704988285621,-4107.0582218,0.00045818,2]
[311233187,1704988285631,-335106.3250228,0.00045849,2]
[311233188,1704988285641,-4895.4446327,0.00045849,2]
[311233189,1704988285651,-151.0,0.00045849,14]
[311233190,1704988285660,-151.0,0.00045849,14]
[311233191,1704988285670,-151.0,0.00045849,14]
[311233192,1704988285679,-1218.039203,0.00045849,14]
[311233193,1704988285689,-1218.039203,0.00045849,14]
[311233194,1704988285698,-151.0,0.00045849,14]
[311233195,1704988285707,-151.0,0.00045849,14]
[311233196,1704988285717,-151.0,0.00045849,14]
[311233197,1704988285726,-151.0,0.00045849,14]
[311233198,1704988285736,-173.2,0.00045849,14]
[311233199,1704988285745,-151.0,0.00045849,14]
[311233200,1704988285755,-151.0,0.00045849,14]
[311233201,1704988285764,-2409.084587,0.00045849,14]
[311233202,1704988285774,-2409.084587,0.00045849,14]
[311233203,1704988285783,-151.0,0.00045849,14]
[311233204,1704988285793,-151.0,0.00045849,14]
[311233205,1704988285803,-151.0,0.00045849,14]
[311233206,1704988285814,-150.44230704,0.00045866,28]
[311233207,1704988285823,-145203.356382,0.0004588,100]
[311233208,1704988285837,-151.0,0.0004588,14]
[311233209,1704988285847,-151.0,0.0004588,14]
[311233210,1704988285857,-151.835387,0.0004588,14]
[311233211,1704988285867,-151.0,0.0004588,14]
[311233212,1704988285877,-151.0,0.0004588,14]
[311233213,1704988285888,-151.0,0.0004588,14]
[311233214,1704988285899,-151.0,0.0004588,14]
[311233215,1704988285909,-151.0,0.0004588,14]
[311233216,1704988285919,-151.0,0.0004588,14]
[311233217,1704988285929,-379.96,0.000459,2]
[311233218,1704988285940,-380.0,0.000459,2]
[311233219,1704988286065,-380.0,0.000459,2]
[311233220,1704988286076,-380.0,0.000459,2]
[311233221,1704988286092,-380.0,0.000459,2]
[311233222,1704988286102,-380.0,0.000459,2]
[311233223,1704988286112,-380.0,0.000459,2]
[311233224,1704988286122,-380.0,0.000459,2]
[311233225,1704988286131,-294.26,0.000459,2]
[311233226,1704988286141,-1486.0,0.000459,30]
[311233227,1704988286150,-350.0,0.00045918,120]
[311233228,1704988286159,-19999.99,0.00045931,2]
[311233229,1704988286169,-200.0,0.00045936,30]
[311233230,1704988286178,-800.0,0.00045936,30]
[311233231,1704988286188,-400.0,0.00045945,120]
[311233232,1704988286197,-238.0,0.0004599,120]
[311233233,1704988286207,-150.0,0.00045999,30]
[311233234,1704988286217,-150.0,0.00045999,30]
[311233235,1704988286227,-150.0,0.00045999,30]
[311233236,1704988286236,-150.0,0.00045999,30]
[311233237,1704988286246,-150.0,0.00045999,30]
[311233238,1704988286255,-150.0,0.00045999,30]
[311233239,1704988286265,-150.0,0.00045999,30]
[311233240,1704988286274,-207.34530056,0.00045999,30]
[311233241,1704988286285,-150.0,0.00045999,30]
[311233242,1704988286294,-100000.0,0.00046,16]
[311233243,1704988286305,-209.999324,0.00046,14]
[311233244,1704988286316,-151.0,0.00046,14]
[311233245,1704988286327,-2242.96619263,0.00046,45]
[311233246,1704988286344,-1809.70743747,0.00046,7]
[311233247,1704988286353,-300.0,0.00046,47]
[311233248,1704988286364,-178.177653,0.00046,73]
[311233249,1704988286373,-1600.83238898,0.00046009,5]
[311233250,1704988286383,-2729.29867338,0.00046009,120]
[311233251,1704988286393,-1000.0,0.00046027,2]
[311233252,1704988286403,-500.0,0.00046027,30]
[311233253,1704988286413,-628.89,0.00046027,30]
[311233254,1704988286423,-500.0,0.00046027,30]
[311233255,1704988286434,-550.0,0.00046027,7]
[311233256,1704988286444,-500.0,0.00046027,30]
[311233257,1704988286453,-500.0,0.00046027,30]
[311233258,1704988286466,-412.55,0.00046027,30]
[311233259,1704988286476,-165.19,0.00046027,30]
[311233260,1704988286487,-1000.0,0.00046027,2]
[311233261,1704988286498,-500.0,0.00046027,30]
[311233262,1704988286509,-500.0,0.00046027,30]
[311233263,1704988286519,-726.52,0.00046027,30]
[311233264,1704988286530,-500.0,0.00046027,30]
[311233265,1704988286542,-500.0,0.00046027,30]
[311233266,1704988286551,-500.0,0.00046027,30]
[311233267,1704988286561,-500.0,0.00046027,30]
[311233268,1704988286571,-483.74030069,0.00046027,30]
[311233269,1704988286586,-500.0,0.00046027,30]
[311233270,1704988286596,-4415.54,0.00046027,30]
[311233271,1704988286606,-500.0,0.00046027,30]
[311233272,1704988286616,-500.0,0.00046027,30]
[311233273,1704988286626,-500.0,0.00046027,30]
[311233274,1704988286635,-500.0,0.00046027,30]
[311233275,1704988286646,-500.0,0.00046027,30]
[311233276,1704988286657,-410.21270507,0.00046027,30]
[311233277,1704988286666,-500.0,0.00046027,30]
[311233278,1704988286677,-500.0,0.00046027,30]
[311233279,1704988286686,-500.0,0.00046027,30]
[311233280,1704988286697,-880.41,0.00046027,30]
[311233281,1704988286706,-160.87,0.00046027,30]
[311233282,1704988286715,-516.19,0.00046027,30]
[311233283,1704988286725,-519.73,0.00046027,30]
[311233284,1704988286735,-500.0,0.00046027,30]
[311233285,1704988286744,-500.0,0.00046027,30]
[311233286,1704988286753,-565.99,0.00046027,30]
[311233287,1704988286762,-500.0,0.00046027,30]
[311233288,1704988286772,-942.54,0.00046027,30]
[311233289,1704988286781,-2952.42,0.00046027,30]
[311233290,1704988286790,-500.0,0.00046027,30]
[311233291,1704988286799,-500.0,0.00046027,30]
[311233292,1704988286809,-308.6,0.00046027,30]
[311233293,1704988286819,-630.37,0.00046027,30]
[311233294,1704988286831,-500.0,0.00046027,30]
[311233295,1704988286842,-500.0,0.00046027,30]
[311233296,1704988286853,-500.0,0.00046027,30]
[311233297,1704988286863,-500.0,0.00046027,30]
[311233298,1704988286873,-301.01,0.00046027,30]
[311233299,1704988286882,-500.0,0.00046027,30]
[311233300,1704988286892,-500.0,0.00046027,30]
[311233301,1704988286901,-466.68,0.00046027,30]
[311233302,1704988286912,-500.0,0.00046027,30]
[311233303,1704988286923,-500.0,0.00046027,30]
[311233304,1704988286933,-500.0,0.00046027,2]
[311233305,1704988286943,-500.0,0.00046027,30]
[311233306,1704988286953,-500.0,0.00046027,30]
[311233307,1704988286963,-500.0,0.00046027,30]
[311233308,1704988286973,-500.0,0.00046027,30]
[311233309,1704988286983,-500.0,0.00046027,30]
[311233310,1704988286993,-594.99,0.00046027,30]
[311233311,1704988287003,-500.0,0.00046027,30]
[311233312,1704988287012,-668.36,0.00046027,30]
[311233313,1704988287021,-500.0,0.00046027,30]
[311233314,1704988287030,-1175.74,0.00046027,30]
[311233315,1704988287039,-500.0,0.00046027,30]
[311233316,1704988287048,-500.0,0.00046027,30]
[311233317,1704988287057,-500.0,0.00046027,30]
[311233318,1704988287066,-500.0,0.00046027,30]
[311233319,1704988287075,-500.0,0.00046027,30]
[311233320,1704988287090,-500.0,0.00046027,30]
[311233321,1704988287099,-500.0,0.00046027,30]
[311233322,1704988287108,-500.0,0.00046027,30]
[311233323,1704988287118,-500.0,0.00046027,30]
[311233324,1704988287127,-1269.85,0.00046027,30]
[311233325,1704988287136,-500.0,0.00046027,30]
[311233326,1704988287145,-500.0,0.00046027,30]
[311233327,1704988287155,-500.0,0.00046027,30]
[311233328,1704988287165,-776.0,0.00046027,30]
[311233329,1704988287174,-500.0,0.00046027,30]
[311233330,1704988287185,-500.0,0.00046027,30]
[311233331,1704988287194,-500.0,0.00046027,30]
[311233332,1704988287203,-631.99,0.00046027,30]
[311233333,1704988287212,-500.0,0.00046027,30]
[311233334,1704988287221,-500.0,0.00046027,30]
[311233335,1704988287231,-500.0,0.00046027,30]
[311233336,1704988287240,-500.0,0.00046027,30]
[311233337,1704988287249,-500.0,0.00046027,30]
[311233338,1704988287259,-500.0,0.00046027,30]
[311233339,1704988287268,-500.0,0.00046027,30]
[311233340,1704988287277,-2450.7,0.00046027,30]
[311233341,1704988287286,-376.70610231,0.00046027,30]
[311233342,1704988287295,-483.7,0.00046027,30]
[311233343,1704988287305,-500.0,0.00046027,30]
[311233344,1704988287314,-500.0,0.00046027,30]
[311233345,1704988287323,-763.89,0.00046027,30]
[311233346,1704988287337,-631.47,0.00046027,30]
[311233347,1704988287346,-500.0,0.00046027,30]
[311233348,1704988287356,-2070.2,0.00046027,30]
[311233349,1704988287366,-500.0,0.00046027,30]
[311233350,1704988287375,-4105.03,0.00046027,30]
[311233351,1704988287385,-500.0,0.00046027,30]
[311233352,1704988287395,-500.0,0.00046027,30]
[311233353,1704988287404,-500.0,0.00046027,30]
[311233354,1704988287414,-591.97,0.00046027,30]
[311233355,1704988287424,-500.0,0.00046027,30]
[311233356,1704988287433,-493.62927978,0.00046027,30]
[311233357,1704988287443,-500.0,0.00046027,30]
[311233358,1704988287452,-1000.0,0.00046027,2]
[311233359,1704988287468,-224.07,0.00046027,30]
[311233360,1704988287478,-500.0,0.00046027,30]
[311233361,1704988287488,-873.42,0.00046027,30]
[311233362,1704988287498,-500.0,0.00046027,30]
[311233363,1704988287509,-500.0,0.00046027,30]
[311233364,1704988287519,-520.28,0.00046027,30]
[311233365,1704988287529,-5007.29,0.00046027,5]
[311233366,1704988287539,-674.68,0.00046027,30]
[311233367,1704988287550,-500.0,0.00046027,30]
[311233368,1704988287560,-500.0,0.00046027,30]
[311233369,1704988287571,-610.25,0.00046027,30]
[311233370,1704988287585,-814.89,0.00046027,30]
[311233371,1704988287595,-640.36523179,0.00046027,30]
[311233372,1704988287605,-601.29,0.00046027,30]
[311233373,1704988287615,-500.0,0.00046027,30]
[311233374,1704988287625,-500.0,0.00046027,30]
[311233375,1704988287635,-503.27,0.00046027,30]
[311233376,1704988287644,-491.73472418,0.00046027,30]
[311233377,1704988287653,-323.99,0.00046027,30]
[311233378,1704988287663,-1423.0,0.00046027,30]
[311233379,1704988287672,-500.0,0.00046027,30]
[311233380,1704988287682,-4201.26,0.00046027,5]
[311233381,1704988287692,-588.0,0.00046027,30]
[311233382,1704988287702,-500.0,0.00046027,30]
[311233383,1704988287712,-4614.86,0.00046027,30]
[311233384,1704988287722,-500.0,0.00046027,30]
[311233385,1704988287732,-151.0,0.00046027,14]
[311233386,1704988287742,-151.0,0.00046027,14]
[311233387,1704988287752,-1120.70052,0.00046027,14]
[311233388,1704988287762,-1120.70052,0.00046027,14]
[311233389,1704988287772,-151.0,0.00046027,14]
[311233390,1704988287782,-151.0,0.00046027,14]
[311233391,1704988287793,-151.0,0.00046027,14]
[311233392,1704988287803,-765.0,0.0004606,120]
[311233393,1704988287813,-1000.0,0.000461,2]
[311233394,1704988287823,-415.01438,0.0004611,31]
[311233395,1704988287835,-2048.0,0.00046127,10]
[311233396,1704988287845,-500.0,0.00046177,7]
[311233397,1704988287854,-500.0,0.00046178,30]
[311233398,1704988287863,-2000.0,0.00046185,7]
[311233399,1704988287872,-200.0,0.00046185,7]
[311233400,1704988287882,-2000.0,0.00046185,7]
[311233401,1704988287891,-200.0,0.00046185,7]
[311233402,1704988287900,-171.0,0.000462,62]
[311233403,1704988288018,-438.05103924,0.00046202,30]
[311233404,1704988288028,-438.05103924,0.0004622,30]
[311233405,1704988288038,-233.05646253,0.000463,8]
[311233406,1704988288048,-1000.0,0.00046301,2]
[311233407,1704988288057,-500.0,0.00046301,30]
[311233408,1704988288067,-628.89,0.00046301,30]
[311233409,1704988288076,-500.0,0.00046301,30]
[311233410,1704988288094,-550.0,0.00046301,7]
[311233411,1704988288104,-500.0,0.00046301,30]
[311233412,1704988288114,-500.0,0.00046301,30]
[311233413,1704988288124,-1000.0,0.00046301,2]
[311233414,1704988288134,-500.0,0.00046301,30]
[311233415,1704988288144,-500.0,0.00046301,30]
[311233416,1704988288154,-726.52,0.00046301,30]
[311233417,1704988288163,-500.0,0.00046301,30]
[311233418,1704988288173,-500.0,0.00046301,30]
[311233419,1704988288182,-500.0,0.00046301,30]
[311233420,1704988288191,-500.0,0.00046301,30]
[311233421,1704988288200,-500.0,0.00046301,30]
[311233422,1704988288221,-4415.54,0.00046301,30]
[311233423,1704988288231,-500.0,0.00046301,30]
[311233424,1704988288241,-500.0,0.00046301,30]
[311233425,1704988288251,-500.0,0.00046301,30]
[311233426,1704988288261,-500.0,0.00046301,30]
[311233427,1704988288271,-500.0,0.00046301,30]
[311233428,1704988288281,-500.0,0.00046301,30]
[311233429,1704988288292,-500.0,0.00046301,30]
[311233430,1704988288302,-880.41,0.00046301,30]
[311233431,1704988288312,-516.19,0.00046301,30]
[311233432,1704988288323,-519.73,0.00046301,30]
[311233433,1704988288336,-500.0,0.00046301,30]
[311233434,1704988288346,-565.99,0.00046301,30]
[311233435,1704988288356,-500.0,0.00046301,30]
[311233436,1704988288366,-500.0,0.00046301,30]
[311233437,1704988288376,-942.54,0.00046301,30]
[311233438,1704988288386,-2952.42,0.00046301,30]
[311233439,1704988288396,-500.0,0.00046301,30]
[311233440,1704988288406,-386.92,0.00046301,30]
[311233441,1704988288417,-630.37,0.00046301,30]
[311233442,1704988288427,-500.0,0.00046301,30]
[311233443,1704988288438,-500.0,0.00046301,30]
[311233444,1704988288448,-500.0,0.00046301,30]
[311233445,1704988288462,-500.0,0.00046301,30]
[311233446,1704988288472,-500.0,0.00046301,30]
[311233447,1704988288482,-500.0,0.00046301,30]
[311233448,1704988288491,-500.0,0.00046301,30]
[311233449,1704988288501,-500.0,0.00046301,30]
[311233450,1704988288511,-500.0,0.00046301,2]
[311233451,1704988288521,-500.0,0.00046301,30]
[311233452,1704988288531,-524.36697153,0.00046301,30]
[311233453,1704988288541,-275.90654363,0.00046301,30]
[311233454,1704988288550,-500.0,0.00046301,30]
[311233455,1704988288561,-500.0,0.00046301,30]
[311233456,1704988288571,-594.99,0.00046301,30]
[311233457,1704988288585,-608.28,0.00046301,30]
[311233458,1704988288595,-668.36,0.00046301,30]
[311233459,1704988288604,-500.0,0.00046301,30]
[311233460,1704988288614,-1175.74,0.00046301,30]
[311233461,1704988288625,-500.0,0.00046301,30]
[311233462,1704988288634,-500.0,0.00046301,30]
[311233463,1704988288644,-500.0,0.00046301,30]
[311233464,1704988288653,-500.0,0.00046301,30]
[311233465,1704988288663,-500.0,0.00046301,30]
[311233466,1704988288672,-500.0,0.00046301,30]
[311233467,1704988288682,-500.0,0.00046301,30]
[311233468,1704988288691,-500.0,0.00046301,30]
[311233469,1704988288701,-500.0,0.00046301,30]
[311233470,1704988288710,-1269.85,0.00046301,30]
[311233471,1704988288719,-500.0,0.00046301,30]
[311233472,1704988288729,-500.0,0.00046301,30]
[311233473,1704988288738,-500.0,0.00046301,30]
[311233474,1704988288747,-776.0,0.00046301,30]
[311233475,1704988288757,-500.0,0.00046301,30]
[311233476,1704988288767,-500.0,0.00046301,30]
[311233477,1704988288777,-249.57,0.00046301,30]
[311233478,1704988288787,-631.99,0.00046301,30]
[311233479,1704988288797,-377.88,0.00046301,30]
[311233480,1704988288807,-500.0,0.00046301,30]
[311233481,1704988288818,-500.0,0.00046301,30]
[311233482,1704988288828,-500.0,0.00046301,30]
[311233483,1704988288845,-500.0,0.00046301,30]
[311233484,1704988288856,-500.0,0.00046301,30]
[311233485,1704988288867,-500.0,0.00046301,30]
[311233486,1704988288878,-2450.7,0.00046301,30]
[311233487,1704988288889,-500.0,0.00046301,30]
[311233488,1704988288900,-500.0,0.00046301,30]
[311233489,1704988288910,-763.89,0.00046301,30]
[311233490,1704988288920,-631.47,0.00046301,30]
[311233491,1704988288932,-396.04,0.00046301,30]
[311233492,1704988288943,-2070.2,0.00046301,30]
[311233493,1704988288954,-500.0,0.00046301,30]
[311233494,1704988288965,-4105.03,0.00046301,30]
[311233495,1704988288975,-500.0,0.00046301,30]
[311233496,1704988288986,-500.0,0.00046301,30]
[311233497,1704988288997,-500.0,0.00046301,30]
[311233498,1704988289007,-591.97,0.00046301,30]
[311233499,1704988289018,-500.0,0.00046301,30]
[311233500,1704988289028,-500.0,0.00046301,30]
[311233501,1704988289038,-1000.0,0.00046301,2]
[311233502,1704988289049,-500.0,0.00046301,30]
[311233503,1704988289059,-873.42,0.00046301,30]
[311233504,1704988289070,-500.0,0.00046301,30]
[311233505,1704988289080,-500.0,0.00046301,30]
[311233506,1704988289097,-520.28,0.00046301,30]
[311233507,1704988289108,-5007.29,0.00046301,5]
[311233508,1704988289118,-674.68,0.00046301,30]
[311233509,1704988289129,-500.0,0.00046301,30]
[311233510,1704988289140,-500.0,0.00046301,30]
[311233511,1704988289150,-610.25,0.00046301,30]
[311233512,1704988289160,-814.89,0.00046301,30]
[311233513,1704988289170,-601.29,0.00046301,30]
[311233514,1704988289180,-500.0,0.00046301,30]
[311233515,1704988289190,-500.0,0.00046301,30]
[311233516,1704988289201,-503.27,0.00046301,30]
[311233517,1704988289210,-1423.0,0.00046301,30]
[311233518,1704988289220,-203.75,0.00046301,30]
[311233519,1704988289230,-4201.26,0.00046301,5]
[311233520,1704988289239,-588.0,0.00046301,30]
[311233521,1704988289249,-500.0,0.00046301,30]
[311233522,1704988289260,-4614.86,0.00046301,30]
[311233523,1704988289270,-500.0,0.00046301,30]
[311233524,1704988289280,-150.0,0.00046332,5]
[311233525,1704988289289,-150.0,0.00046332,5]
[311233526,1704988289299,-4047.8409624,0.00046364,2]
[311233527,1704988289310,-16930.1308844,0.00046364,2]
[311233528,1704988289320,-15545.9809482,0.00046364,2]
[311233529,1704988289330,-438.05103924,0.00046366,30]
[311233530,1704988289346,-772.15,0.00046396,2]
[311233531,1704988289356,-10000.0,0.000464,30]
[311233532,1704988289366,-5344.72,0.000464,7]
[311233533,1704988289375,-3429.09,0.00046466,3]
[311233534,1704988289385,-12418.454475,0.00046548,120]
[311233535,1704988289394,-8600.42044,0.00046548,120]
[311233536,1704988289405,-1345.176271,0.00046548,120]
[311233537,1704988289415,-20357.849327,0.00046548,120]
[311233538,1704988289426,-1608.026808,0.00046548,120]
[311233539,1704988289436,-1506.637273,0.00046548,120]
[311233540,1704988289446,-11666.959968,0.00046548,120]
[311233541,1704988289457,-4821.239274,0.00046548,120]
[311233542,1704988289469,-37334.271893,0.00046548,120]
[311233543,1704988289479,-1812.049358,0.00046548,120]
[311233544,1704988289489,-150.0,0.0004656,60]
[311233545,1704988289499,-1000.0,0.00046575,2]
[311233546,1704988289509,-320.48183472,0.00046575,30]
[311233547,1704988289519,-628.89,0.00046575,30]
[311233548,1704988289528,-483.8,0.00046575,30]
[311233549,1704988289538,-550.0,0.00046575,7]
[311233550,1704988289549,-500.0,0.00046575,30]
[311233551,1704988289558,-253.79,0.00046575,30]
[311233552,1704988289567,-1000.0,0.00046575,2]
[311233553,1704988289577,-579.38,0.00046575,30]
[311233554,1704988289591,-500.0,0.00046575,30]
[311233555,1704988289600,-726.52,0.00046575,30]
[311233556,1704988289610,-500.0,0.00046575,30]
[311233557,1704988289618,-596.41597515,0.00046575,30]
[311233558,1704988289627,-500.0,0.00046575,30]
[311233559,1704988289636,-500.0,0.00046575,30]
[311233560,1704988289646,-500.0,0.00046575,30]
[311233561,1704988289656,-4415.54,0.00046575,30]
[311233562,1704988289665,-500.0,0.00046575,30]
[311233563,1704988289675,-500.0,0.00046575,30]
[311233564,1704988289684,-500.0,0.00046575,30]
[311233565,1704988289694,-500.0,0.00046575,30]
[311233566,1704988289704,-500.0,0.00046575,30]
[311233567,1704988289714,-500.0,0.00046575,30]
[311233568,1704988289723,-880.41,0.00046575,30]
[311233569,1704988289732,-516.19,0.00046575,30]
[311233570,1704988289742,-519.73,0.00046575,30]
[311233571,1704988289752,-500.0,0.00046575,30]
[311233572,1704988289896,-565.99,0.00046575,30]
[311233573,1704988289906,-500.0,0.00046575,30]
[311233574,1704988289916,-500.0,0.00046575,30]
[311233575,1704988289926,-942.54,0.00046575,30]
[311233576,1704988289937,-2952.42,0.00046575,30]
[311233577,1704988289948,-500.0,0.00046575,30]
[311233578,1704988289958,-630.37,0.00046575,30]
[311233579,1704988289968,-500.0,0.00046575,30]
[311233580,1704988289978,-500.0,0.00046575,30]
[311233581,1704988289989,-500.0,0.00046575,30]
[311233582,1704988289999,-500.0,0.00046575,30]
[311233583,1704988290010,-500.0,0.00046575,30]
[311233584,1704988290019,-500.0,0.00046575,30]
[311233585,1704988290029,-500.0,0.00046575,30]
[311233586,1704988290038,-500.0,0.00046575,30]
[311233587,1704988290048,-500.0,0.00046575,2]
[311233588,1704988290058,-500.0,0.00046575,30]
[311233589,1704988290068,-500.0,0.00046575,30]
[311233590,1704988290079,-500.0,0.00046575,30]
[311233591,1704988290094,-594.99,0.00046575,30]
[311233592,1704988290105,-668.36,0.00046575,30]
[311233593,1704988290115,-500.0,0.00046575,30]
[311233594,1704988290125,-1175.74,0.00046575,30]
[311233595,1704988290135,-500.0,0.00046575,30]
[311233596,1704988290147,-500.0,0.00046575,30]
[311233597,1704988290159,-500.0,0.00046575,30]
[311233598,1704988290169,-500.0,0.00046575,30]
[311233599,1704988290179,-500.0,0.00046575,30]
[311233600,1704988290189,-500.0,0.00046575,30]
[311233601,1704988290199,-500.0,0.00046575,30]
[311233602,1704988290208,-500.0,0.00046575,30]
[311233603,1704988290219,-246.93,0.00046575,30]
[311233604,1704988290229,-1269.85,0.00046575,30]
[311233605,1704988290239,-500.0,0.00046575,30]
[311233606,1704988290251,-500.0,0.00046575,30]
[311233607,1704988290262,-776.0,0.00046575,30]
[311233608,1704988290272,-500.0,0.00046575,30]
[311233609,1704988290282,-500.0,0.00046575,30]
[311233610,1704988290294,-500.0,0.00046575,30]
[311233611,1704988290304,-631.99,0.00046575,30]
[311233612,1704988290314,-500.0,0.00046575,30]
[311233613,1704988290324,-500.0,0.00046575,30]
[311233614,1704988290337,-500.0,0.00046575,30]
[311233615,1704988290348,-500.0,0.00046575,30]
[311233616,1704988290358,-500.0,0.00046575,30]
[311233617,1704988290369,-477.49156357,0.00046575,30]
[311233618,1704988290379,-2450.7,0.00046575,30]
[311233619,1704988290390,-500.0,0.00046575,30]
[311233620,1704988290401,-500.0,0.00046575,30]
[311233621,1704988290411,-763.89,0.00046575,30]
[311233622,1704988290421,-631.47,0.00046575,30]
[311233623,1704988290432,-2070.2,0.00046575,30]
[311233624,1704988290443,-500.0,0.00046575,30]
[311233625,1704988290453,-4105.03,0.00046575,30]
[311233626,1704988290467,-500.0,0.00046575,30]
[311233627,1704988290478,-500.0,0.00046575,30]
[311233628,1704988290488,-281.74,0.00046575,30]
[311233629,1704988290498,-591.97,0.00046575,30]
[311233630,1704988290508,-500.0,0.00046575,30]
[311233631,1704988290518,-500.0,0.00046575,30]
[311233632,1704988290527,-1000.0,0.00046575,2]
[311233633,1704988290537,-500.0,0.00046575,30]
[311233634,1704988290546,-873.42,0.00046575,30]
[311233635,1704988290556,-500.0,0.00046575,30]
[311233636,1704988290567,-431.73,0.00046575,30]
[311233637,1704988290577,-520.28,0.00046575,30]
[311233638,1704988290590,-5007.29,0.00046575,5]
[311233639,1704988290600,-674.68,0.00046575,30]